bitfinex-derivatives/quotes_BTCF0:USTF0_20241223
["timestamp","ask_amount","ask_price","bid_price","bid_amount"]
[1734922172896,0.001,94345.0,94344.0,0.00111693]
[1734922173299,0.053051,94346.0,94344.0,0.00011693]
[1734922173600,0.053051,94346.0,94344.0,0.00111693]
[1734922173998,0.001,94345.0,94344.0,0.00111693]
[1734922174511,0.053051,94346.0,94344.0,0.00011693]
[1734922174699,0.054051,94346.0,94344.0,0.00111693]
[1734922175910,0.001,94346.0,94344.0,0.00111693]
[1734922176297,0.001,94345.0,94344.0,0.00111693]
[1734922176702,0.15700265,94355.0,94344.0,0.00111693]
[1734922176903,0.15700265,94355.0,94354.0,0.3608]
[1734922177801,0.05312015,94356.0,94354.0,0.3608]
[1734922178207,0.15700265,94370.0,94355.0,0.52029301]
[1734922178408,0.15700265,94370.0,94369.0,0.3608]
[1734922178907,0.18860651,94377.0,94374.0,0.053034]
[1734922179211,0.15758451,94383.0,94382.0,0.05303]
[1734922179409,0.15771007,94383.0,94382.0,0.41383]
[1734922180618,0.00112556,94383.0,94382.0,0.41683]
[1734922181003,0.00012556,94383.0,94382.0,0.41383]
[1734922181311,0.00112556,94383.0,94382.0,0.41683]
[1734922181616,0.053017,94405.0,94394.0,0.053024]
[1734922181812,0.053017,94405.0,94398.0,0.3608]
[1734922182011,0.54940651,94414.0,94398.0,0.3608]
[1734922182206,0.55020652,94414.0,94399.0,0.249021]
[1734922182509,0.053015,94409.0,94399.0,0.196]
[1734922182707,4.273e-05,94411.0,94382.0,0.3608]
[1734922182708,0.001,94405.0,94382.0,0.3608]
[1734922182904,0.16200484,94400.0,94382.0,0.3608]
[1734922183105,0.3608,94397.0,94383.0,0.19025229]
[1734922183300,0.053029,94385.0,94383.0,0.19025229]
[1734922184215,0.053029,94385.0,94382.0,0.3628]
[1734922185114,0.2052,94396.0,94382.0,0.3628]
[1734922185318,0.053023,94395.0,94382.0,0.3628]
[1734922185815,0.053023,94395.0,94382.0,0.3608]
[1734922186500,0.053023,94395.0,94382.0,0.3638]
[1734922186704,0.053024,94393.0,94382.0,0.3638]
[1734922186908,0.053027,94389.0,94382.0,0.3608]
[1734922187110,0.053027,94389.0,94382.0,0.3618]
[1734922187308,0.053027,94389.0,94382.0,0.001]
[1734922187309,0.05303,94383.0,94382.0,0.001]
[1734922188414,4.273e-05,94388.0,94382.0,0.001]
[1734922188818,4.273e-05,94388.0,94387.0,0.053028]
[1734922189022,4.273e-05,94388.0,94387.0,0.423028]
[1734922189817,0.00104273,94388.0,94387.0,0.423028]
[1734922190720,4.273e-05,94388.0,94387.0,0.423028]
[1734922191017,0.00204273,94388.0,94387.0,0.423028]
[1734922191420,0.053016,94409.0,94396.0,0.053022]
[1734922191615,0.00158954,94412.0,94387.0,0.94812362]
[1734922191616,0.00158954,94412.0,94405.0,0.053017]
[1734922193322,0.00258954,94412.0,94405.0,0.002]
[1734922193522,0.053017,94407.0,94405.0,0.002]
[1734922194819,0.00258954,94412.0,94405.0,0.002]
[1734922194820,0.00258954,94412.0,94407.0,0.053016]
[1734922195017,0.00258954,94412.0,94405.0,0.002]
[1734922195018,0.00258954,94412.0,94410.0,0.053014]
[1734922195224,0.001,94412.0,94411.0,0.3608]
[1734922195724,0.1257918,94424.0,94411.0,0.3608]
[1734922195725,0.1257918,94424.0,94411.0,0.7308]
[1734922195915,0.053013,94412.0,94411.0,0.37]
[1734922196122,0.053013,94412.0,94401.0,0.3608]
[1734922196324,0.060013,94412.0,94410.0,0.001]
[1734922196624,0.060013,94412.0,94411.0,0.37]
[1734922196820,0.053013,94412.0,94411.0,0.37]
[1734922197721,0.053008,94421.0,94411.0,0.37]
[1734922198630,0.004,94412.0,94411.0,0.37]
[1734922199126,0.3608,94412.0,94401.0,0.3608]
[1734922199321,0.36410484,94411.0,94401.0,0.3608]
[1734922199530,0.053019,94403.0,94401.0,0.3608]
[1734922199722,0.2021,94411.0,94401.0,0.3608]
[1734922199922,0.2021,94411.0,94392.0,0.01077629]
[1734922200118,0.00580001,94412.0,94411.0,0.053014]
[1734922200323,0.005,94412.0,94411.0,0.053014]
[1734922200528,0.3608,94428.0,94411.0,0.37]
[1734922200720,0.3608,94428.0,94412.0,0.053013]
[1734922200915,0.053006,94427.0,94412.0,0.053013]
[1734922201131,0.053007,94425.0,94412.0,0.053013]
[1734922201329,0.16200484,94422.0,94412.0,0.053013]
[1734922201644,0.053007,94425.0,94412.0,0.053013]
[1734922202016,0.053007,94425.0,94411.0,0.37]
[1734922202017,0.00080001,94428.0,94411.0,0.37]
[1734922202219,0.3608,94439.0,94427.0,0.053005]
[1734922202530,0.3608,94439.0,94429.0,0.3608]
[1734922202933,0.1257918,94438.0,94429.0,0.3608]
[1734922203434,0.001,94433.0,94427.0,0.008]
[1734922203618,0.053004,94429.0,94427.0,0.008]
[1734922203821,0.053011,94417.0,94411.0,8.429e-05]
[1734922204024,0.1835,94416.0,94411.0,8.429e-05]
[1734922204819,0.52368485,94430.0,94416.0,0.053011]
[1734922205029,0.1835,94429.0,94416.0,0.053011]
[1734922205532,0.053005,94428.0,94416.0,0.053011]
[1734922205727,0.053005,94427.0,94416.0,0.053011]
[1734922206129,0.053007,94425.0,94411.0,8.429e-05]
[1734922206334,0.053007,94424.0,94411.0,8.429e-05]
[1734922207032,0.053014,94412.0,94411.0,8.429e-05]
[1734922207730,0.3608,94413.0,94411.0,8.429e-05]
[1734922207934,0.1835,94429.0,94419.0,0.05301]
[1734922208336,0.1835,94429.0,94420.0,0.37]
[1734922208636,0.1257918,94425.0,94420.0,0.37]
[1734922208838,0.1257918,94425.0,94424.0,0.053007]
[1734922209227,0.18860651,94436.0,94424.0,0.15983921]
[1734922209531,0.18860651,94436.0,94435.0,0.3608]
[1734922210036,0.00158894,94446.0,94443.0,0.052996]
[1734922210223,0.00158894,94446.0,94445.0,0.052995]
[1734922211121,0.1577051,94453.0,94445.0,0.16905669]
[1734922211328,0.1577051,94453.0,94452.0,0.413791]
[1734922211831,0.052984,94465.0,94452.0,0.413791]
[1734922212031,0.052984,94465.0,94453.0,0.37]
[1734922212227,0.052986,94462.0,94453.0,0.37]
[1734922212431,0.16200484,94470.0,94453.0,0.37]
[1734922212432,0.05299,94455.0,94453.0,0.37]
[1734922212631,0.1905,94454.0,94453.0,0.37]
[1734922212828,0.3769,94454.0,94432.0,0.413802]
[1734922213131,0.052994,94448.0,94432.0,0.37154173]
[1734922213332,0.052997,94441.0,94440.0,0.19025229]
[1734922214337,0.37132916,94449.0,94440.0,0.19025229]
[1734922214539,0.37132916,94449.0,94432.0,0.37154173]
[1734922214731,0.052995,94446.0,94432.0,0.01074173]
[1734922214931,0.052995,94446.0,94430.0,0.37]
[1734922215140,0.052995,94446.0,94432.0,0.053002]
[1734922215537,0.36160001,94449.0,94433.0,0.3608]
[1734922215729,0.3769,94454.0,94442.0,0.3608]
[1734922215730,0.00088001,94454.0,94442.0,0.3608]
[1734922215929,0.3608,94458.0,94442.0,0.3608]
[1734922216134,0.3608,94458.0,94451.0,0.052991]
[1734922216338,0.3608,94458.0,94454.0,0.05299]
[1734922216543,0.1577051,94462.0,94451.0,0.3608]
[1734922216835,0.1577051,94462.0,94460.0,0.052986]
[1734922217233,0.37060001,94480.0,94457.0,0.3608]
[1734922217435,0.052987,94460.0,94457.0,0.3608]
[1734922217738,0.052983,94467.0,94453.0,0.01071424]
[1734922217928,0.052978,94476.0,94452.0,0.3781]
[1734922218234,0.052978,94476.0,94465.0,0.052984]
[1734922218440,0.54317208,94480.0,94459.0,0.3608]
[1734922218634,0.052987,94460.0,94459.0,0.3608]
[1734922218947,0.3608,94463.0,94446.0,0.00158815]
[1734922219134,0.052992,94451.0,94446.0,0.00158815]
[1734922219333,0.1889,94450.0,94446.0,0.00158815]
[1734922220645,0.1899,94450.0,94446.0,0.00158815]
[1734922221843,0.001,94450.0,94449.0,0.052993]
[1734922222144,0.052978,94477.0,94449.0,0.052993]
[1734922222145,0.5185051,94472.0,94449.0,0.64585486]
[1734922222346,0.51930511,94472.0,94453.0,0.3608]
[1734922222536,0.5185051,94472.0,94461.0,0.3608]
[1734922222937,0.1577051,94472.0,94464.0,0.052984]
[1734922223635,0.1924,94473.0,94464.0,0.052984]
[1734922223938,0.05298,94472.0,94464.0,0.052984]
[1734922224151,0.06098,94472.0,94464.0,0.052984]
[1734922224536,0.008,94472.0,94461.0,0.3608]
[1734922224735,0.052982,94468.0,94461.0,0.3608]
[1734922225643,0.052982,94468.0,94461.0,0.37154674]
[1734922226544,0.006,94468.0,94461.0,0.37154674]
[1734922226846,0.006,94468.0,94465.0,0.052983]
[1734922227733,0.006,94468.0,94466.0,0.37]
[1734922227940,0.05299,94454.0,94453.0,0.3608]
[1734922228236,0.052993,94450.0,94448.0,0.19025229]
[1734922228546,0.3715,94449.0,94448.0,0.19025229]
[1734922228849,0.3715,94449.0,94448.0,0.56025229]
[1734922229235,0.36164,94459.0,94451.0,0.052992]
[1734922229544,0.3608,94459.0,94448.0,0.37]
[1734922230935,0.052991,94453.0,94448.0,0.37]
[1734922231437,0.052993,94449.0,94432.0,0.053002]
[1734922231637,0.052993,94449.0,94433.0,0.053001]
[1734922231844,0.3608,94451.0,94431.0,0.3715352]
[1734922232032,0.38108001,94465.0,94440.0,0.16200484]
[1734922232033,0.3608,94453.0,94440.0,0.16200484]
[1734922232445,0.3658,94453.0,94440.0,0.16200484]
[1734922233035,0.3658,94453.0,94444.0,0.052996]
[1734922233036,0.3608,94453.0,94444.0,0.052996]
[1734922233230,0.3608,94453.0,94440.0,0.16200484]
[1734922233432,0.3608,94453.0,94439.0,0.3608]
[1734922233640,0.053001,94436.0,94434.0,0.37]
[1734922233840,0.053004,94430.0,94426.0,0.19025229]
[1734922234145,0.3608,94427.0,94420.0,0.25312138]
[1734922234342,0.053008,94423.0,94421.0,0.37]
[1734922235540,0.3608,94423.0,94411.0,8.429e-05]
[1734922235741,0.413814,94412.0,94411.0,8.429e-05]
[1734922235952,0.36088429,94412.0,94394.0,0.25312138]
[1734922236148,0.3608,94396.0,94394.0,0.25312138]
[1734922236536,0.3608,94396.0,94395.0,0.06]
[1734922237741,0.16200484,94404.0,94395.0,0.06]
[1734922237936,8.429e-05,94412.0,94395.0,0.63760909]
[1734922238139,8.429e-05,94412.0,94400.0,0.16200484]
[1734922238343,8.429e-05,94412.0,94401.0,0.253919]
[1734922238641,8.429e-05,94412.0,94401.0,0.52893055]
[1734922238841,8.429e-05,94412.0,94401.0,0.253919]
[1734922239050,8.429e-05,94412.0,94401.0,0.26451261]
[1734922239454,0.00108429,94412.0,94401.0,0.26451261]
[1734922240157,8.429e-05,94412.0,94401.0,0.26451261]
[1734922240352,0.053019,94403.0,94395.0,0.06]
[1734922240558,0.053024,94393.0,94385.0,0.3608]
[1734922240947,0.053024,94393.0,94386.0,0.06]
[1734922241857,0.053024,94393.0,94386.0,0.4208]
[1734922242549,0.053024,94393.0,94386.0,0.06]
[1734922242954,0.054024,94393.0,94386.0,0.06]
[1734922244056,0.001,94393.0,94386.0,0.06]
[1734922245360,0.001,94393.0,94391.0,0.053025]
[1734922245650,0.3608,94422.0,94392.0,0.15852348]
[1734922245855,0.3608,94422.0,94411.0,0.413814]
[1734922246257,0.1577051,94428.0,94411.0,0.413814]
[1734922246557,0.1577051,94428.0,94411.0,0.473814]
[1734922247147,0.053005,94428.0,94411.0,0.473814]
[1734922247348,0.16200484,94430.0,94411.0,0.473814]
[1734922247349,0.053008,94423.0,94411.0,0.473814]
[1734922247647,0.05301,94419.0,94411.0,0.4208]
[1734922247851,0.053004,94429.0,94411.0,0.473814]
[1734922248058,0.3608,94437.0,94411.0,0.473814]
[1734922248251,0.3608,94437.0,94430.0,0.053003]
[1734922249861,0.3608,94437.0,94430.0,0.056003]
[1734922250360,0.053,94436.0,94429.0,0.3608]
[1734922250753,0.3608,94437.0,94419.0,0.3608]
[1734922251352,0.3608,94437.0,94429.0,0.413804]
[1734922251662,0.053003,94431.0,94429.0,0.3608]
[1734922251858,0.3608,94437.0,94419.0,0.3608]
[1734922252049,0.053008,94422.0,94419.0,0.3608]
[1734922252249,0.053008,94422.0,94413.0,0.06]
[1734922252446,0.053009,94421.0,94412.0,0.1858]
[1734922252657,0.05301,94419.0,94406.0,0.3608]
[1734922253162,0.05301,94419.0,94408.0,0.06]
[1734922254258,0.16200484,94420.0,94408.0,0.06]
[1734922254459,0.75600001,94429.0,94408.0,0.113016]
[1734922254655,0.053007,94425.0,94408.0,0.113016]
[1734922254962,0.16200484,94420.0,94408.0,0.113016]
[1734922255157,0.053012,94415.0,94408.0,0.06]
[1734922255456,0.3608,94419.0,94408.0,0.06]
[1734922255759,0.053016,94408.0,94407.0,0.00458881]
[1734922256061,0.053016,94408.0,94407.0,0.00158881]
[1734922256359,0.3608,94419.0,94407.0,0.06158881]
[1734922256660,0.053011,94417.0,94407.0,0.06158881]
[1734922256861,0.053011,94417.0,94408.0,0.002]
[1734922257157,0.3608,94415.0,94408.0,0.002]
[1734922257355,0.16200484,94420.0,94407.0,0.06158881]
[1734922257558,0.004,94408.0,94407.0,0.06158881]
[1734922257861,0.004,94408.0,94407.0,0.00158881]
[1734922258063,0.3608,94413.0,94407.0,0.00158881]
[1734922258558,0.053012,94415.0,94407.0,0.00158881]
[1734922258761,0.053013,94414.0,94407.0,0.00158881]
[1734922258963,0.001,94417.0,94407.0,0.00158881]
[1734922259157,0.053016,94409.0,94407.0,0.00158881]
[1734922259748,0.001,94408.0,94407.0,0.00158881]
[1734922260351,0.003,94409.0,94407.0,0.19538881]
[1734922260751,0.003,94409.0,94407.0,0.00158881]
[1734922260965,0.003,94408.0,94407.0,0.00158881]
[1734922261363,0.0943482,94419.0,94407.0,0.57430395]
[1734922261558,0.0943482,94419.0,94418.0,0.41381]
[1734922261762,0.1577051,94429.0,94428.0,0.053005]
[1734922261955,0.1577051,94429.0,94428.0,0.4208]
[1734922262463,0.52280484,94440.0,94428.0,0.06]
[1734922262663,0.1577051,94442.0,94428.0,0.06]
[1734922262664,0.052999,94438.0,94428.0,0.06]
[1734922262960,0.1577051,94442.0,94434.0,0.053001]
[1734922263167,0.2107021,94442.0,94428.0,0.06]
[1734922263370,0.001,94429.0,94428.0,0.065]
[1734922263871,0.2107021,94442.0,94428.0,0.06]
[1734922263872,0.052997,94442.0,94428.0,0.06]
[1734922264058,0.001,94438.0,94428.0,0.119004]
[1734922264453,0.053999,94438.0,94428.0,0.119004]
[1734922264660,0.052999,94438.0,94428.0,0.116004]
[1734922265465,0.053001,94435.0,94428.0,0.063]
[1734922265667,0.053002,94433.0,94428.0,0.003]
[1734922266067,0.053004,94429.0,94428.0,0.003]
[1734922266269,0.3608,94433.0,94428.0,0.004]
[1734922266473,0.3608,94429.0,94410.0,0.25312138]
[1734922266673,0.053014,94411.0,94410.0,0.25312138]
[1734922267168,0.6608,94429.0,94410.0,0.25312138]
[1734922267169,0.053009,94420.0,94410.0,0.25312138]
[1734922267669,0.1577051,94422.0,94410.0,0.16200484]
[1734922267870,0.1577051,94422.0,94407.0,0.3608]
[1734922268166,0.52280484,94420.0,94407.0,0.3608]
[1734922268372,0.3608,94409.0,94382.0,0.05303]
[1734922268561,0.05302,94400.0,94396.0,0.3608]
[1734922268757,0.3608,94409.0,94396.0,0.3608]
[1734922268961,0.3608,94409.0,94397.0,0.06]
[1734922269170,0.3608,94409.0,94399.0,0.16200484]
[1734922269363,0.004,94411.0,94407.0,0.3608]
[1734922269568,0.004,94411.0,94410.0,0.053015]
[1734922269776,0.004,94411.0,94407.0,0.3608]
[1734922269962,0.053014,94411.0,94404.0,0.3608]
[1734922270671,0.053014,94411.0,94407.0,0.002]
[1734922271267,0.053015,94409.0,94404.0,0.3628]
[1734922271462,0.053016,94407.0,94404.0,0.002]
[1734922271670,0.001,94411.0,94404.0,0.002]
[1734922272067,0.053016,94408.0,94404.0,0.002]
[1734922272267,0.001,94411.0,94404.0,0.002]
[1734922272976,0.3608,94405.0,94404.0,0.002]
[1734922273375,0.3608,94405.0,94397.0,0.06]
[1734922273578,0.05302,94401.0,94397.0,0.06]
[1734922273877,0.053021,94399.0,94397.0,0.06]
[1734922274178,0.2013,94398.0,94397.0,0.06]
[1734922274864,0.053021,94399.0,94397.0,0.06]
[1734922275476,0.12611939,94402.0,94397.0,0.06]
[1734922276069,0.12611939,94406.0,94397.0,0.06]
[1734922276569,0.053018,94404.0,94397.0,0.4208]
[1734922276773,0.053018,94404.0,94397.0,0.06]
[1734922278368,0.053018,94404.0,94392.0,0.3608]
[1734922278369,0.16200484,94407.0,94392.0,0.3608]
[1734922278570,0.12611939,94408.0,94401.0,0.3608]
[1734922278767,0.12611939,94408.0,94402.0,0.1946]
[1734922278975,0.3608,94404.0,94392.0,0.3608]
[1734922279172,0.05302,94400.0,94392.0,0.3608]
[1734922279572,0.05302,94400.0,94393.0,0.06]
[1734922280377,0.053021,94399.0,94393.0,0.06]
[1734922280577,0.053023,94396.0,94393.0,0.06]
[1734922280785,0.053024,94395.0,94393.0,0.06]
[1734922281173,0.053024,94395.0,94393.0,0.064]
[1734922281378,0.413824,94395.0,94393.0,0.004]
[1734922282787,0.053028,94386.0,94384.0,0.06158919]
[1734922283485,0.16200484,94394.0,94393.0,0.002]
[1734922283678,0.00084,94395.0,94393.0,0.002]
[1734922283880,0.1577051,94401.0,94400.0,0.05302]
[1734922284078,0.16200484,94410.0,94400.0,0.05302]
[1734922284079,0.1577051,94404.0,94400.0,0.41382]
[1734922284275,0.1577051,94404.0,94400.0,0.3608]
[1734922284481,0.1577051,94404.0,94402.0,0.053019]
[1734922284783,0.1577051,94404.0,94398.0,0.053021]
[1734922285183,0.1577051,94404.0,94394.0,0.1959]
[1734922285385,0.1577051,94404.0,94396.0,0.3608]
[1734922285783,0.053021,94398.0,94396.0,0.3608]
[1734922286175,0.2021,94405.0,94393.0,0.002]
[1734922286374,0.053023,94395.0,94385.0,0.25312138]
[1734922286985,0.3608,94397.0,94396.0,0.001]
[1734922287185,0.255118,94405.0,94396.0,0.001]
[1734922287385,0.16200484,94406.0,94396.0,0.3618]
[1734922287593,0.1262516,94402.0,94394.0,0.053023]
[1734922288987,0.34127344,94406.0,94394.0,0.053023]
[1734922289585,0.34127344,94406.0,94396.0,0.001]
[1734922290089,0.28825644,94406.0,94396.0,0.001]
[1734922290478,0.28825644,94406.0,94388.0,0.3608]
[1734922290777,0.28825644,94406.0,94394.0,0.002]
[1734922290778,0.053023,94395.0,94394.0,0.002]
[1734922291492,0.353023,94395.0,94375.0,0.61392138]
[1734922291705,0.053034,94376.0,94375.0,0.61392138]
[1734922291993,0.053034,94376.0,94375.0,0.3608]
[1734922292391,0.57583384,94385.0,94375.0,0.3608]
[1734922292692,0.16200484,94385.0,94375.0,0.413834]
[1734922293084,0.17232746,94385.0,94375.0,0.3608]
[1734922293391,0.3608,94376.0,94369.0,0.06]
[1734922293582,0.053036,94372.0,94369.0,0.06]
[1734922294194,0.3618,94376.0,94359.0,0.25312138]
[1734922294492,0.05304,94365.0,94359.0,0.25312138]
[1734922294698,0.1946,94364.0,94363.0,0.06008]
[1734922294993,0.3856,94364.0,94363.0,8e-05]
[1734922295983,0.053048,94351.0,94350.0,0.00158977]
[1734922297096,0.06363888,94351.0,94350.0,0.00158977]
[1734922297486,0.06363888,94351.0,94350.0,0.00358977]
[1734922298581,0.3608,94354.0,94350.0,0.00358977]
[1734922298990,0.12597761,94356.0,94350.0,0.00358977]
[1734922299203,0.12597761,94356.0,94355.0,0.06]
[1734922300093,8e-05,94364.0,94355.0,0.06]
[1734922300794,8e-05,94364.0,94355.0,0.062]
[1734922301393,0.01043358,94364.0,94355.0,0.062]
[1734922301593,8e-05,94364.0,94355.0,0.4228]
[1734922301794,8e-05,94364.0,94355.0,0.062]
[1734922302394,8e-05,94364.0,94355.0,0.06]
[1734922302586,8e-05,94364.0,94355.0,0.062]
[1734922304193,8e-05,94364.0,94359.0,0.053043]
[1734922304390,8e-05,94364.0,94355.0,0.062]
[1734922305296,0.053045,94357.0,94355.0,0.002]
[1734922305695,0.053045,94357.0,94351.0,0.06]
[1734922305897,8e-05,94364.0,94355.0,0.001]
[1734922305898,0.16200484,94361.0,94355.0,0.001]
[1734922306200,8e-05,94364.0,94355.0,0.001]
[1734922306591,0.003,94357.0,94351.0,0.06]
[1734922307101,8e-05,94364.0,94351.0,0.06]
[1734922307394,8e-05,94364.0,94355.0,0.001]
[1734922308602,8e-05,94364.0,94359.0,0.053043]
[1734922308799,8e-05,94364.0,94360.0,0.1891]
[1734922309000,8e-05,94364.0,94363.0,0.3608]
[1734922309801,8e-05,94364.0,94360.0,0.1891]
[1734922310002,8e-05,94364.0,94362.0,0.413841]
[1734922310201,0.00308,94364.0,94363.0,0.1834]
[1734922310909,0.00208,94364.0,94363.0,0.1834]
[1734922311299,0.00208,94364.0,94356.0,0.1897]
[1734922311500,0.00208,94364.0,94356.0,0.242745]
[1734922311899,0.00208,94364.0,94356.0,0.1897]
[1734922312703,0.055121,94364.0,94356.0,0.1897]
[1734922313207,0.053041,94363.0,94356.0,0.1897]
[1734922313703,0.053041,94363.0,94356.0,0.1917]
[1734922313903,8e-05,94364.0,94356.0,0.1917]
[1734922314103,0.053042,94361.0,94356.0,0.1907]
[1734922314302,0.053044,94357.0,94356.0,0.001]
[1734922314898,0.3608,94359.0,94356.0,0.001]
[1734922315401,8e-05,94364.0,94356.0,0.001]
[1734922315604,8e-05,94364.0,94360.0,0.3608]
[1734922315802,8e-05,94364.0,94356.0,0.001]
[1734922316602,8e-05,94364.0,94351.0,0.3608]
[1734922316803,8e-05,94364.0,94356.0,0.002]
[1734922317406,0.00208,94364.0,94352.0,0.053047]
[1734922317601,0.10793899,94362.0,94351.0,0.3608]
[1734922318709,0.10793899,94362.0,94351.0,0.413847]
[1734922319301,8e-05,94364.0,94361.0,0.3608]
[1734922319512,8e-05,94364.0,94358.0,0.053043]
[1734922320304,8e-05,94364.0,94351.0,0.3638]
[1734922320508,0.00208,94364.0,94359.0,0.3608]
[1734922320709,0.00208,94364.0,94362.0,0.053041]
[1734922320894,0.00208,94364.0,94363.0,0.1964]
[1734922321098,0.00108,94364.0,94363.0,0.1964]
[1734922321604,0.00108,94364.0,94351.0,0.5572]
[1734922321806,0.00108,94364.0,94351.0,0.81032138]
[1734922321807,0.053045,94356.0,94351.0,0.81032138]
[1734922322409,0.21587798,94361.0,94351.0,0.61392138]
[1734922322600,0.053047,94353.0,94351.0,0.25312138]
[1734922322907,0.3677,94360.0,94351.0,0.25312138]
[1734922322908,0.420743,94360.0,94351.0,0.25312138]
[1734922323107,0.3677,94360.0,94351.0,0.25312138]
[1734922323413,0.1577051,94354.0,94350.0,0.00158977]
[1734922323600,0.2107511,94354.0,94350.0,0.00158977]
[1734922323801,0.1577051,94354.0,94350.0,0.00158977]
[1734922323997,0.3608,94351.0,94350.0,0.00158977]
[1734922326614,0.3638,94351.0,94350.0,0.00158977]
[1734922326807,0.003,94351.0,94350.0,0.36238977]
[1734922327216,0.15874634,94353.0,94350.0,0.74038977]
[1734922327408,0.15874634,94353.0,94351.0,0.113048]
[1734922327713,0.15873124,94365.0,94351.0,0.57782604]
[1734922327912,0.15873124,94365.0,94363.0,0.413841]
[1734922328304,0.18852651,94372.0,94371.0,0.053037]
[1734922328617,0.053033,94378.0,94371.0,0.3608]
[1734922329004,0.053034,94376.0,94371.0,0.3608]
[1734922329307,0.10793899,94381.0,94371.0,0.3608]
[1734922329308,0.053036,94373.0,94371.0,0.3608]
[1734922330215,0.1945,94380.0,94371.0,0.3608]
[1734922330416,0.1269512,94384.0,94371.0,0.3618]
[1734922330614,0.1269512,94384.0,94372.0,0.5731]
[1734922330815,0.25792344,94391.0,94380.0,0.3608]
[1734922331517,0.053032,94379.0,94372.0,0.00056]
[1734922331815,0.053032,94379.0,94373.0,0.06]
[1734922332018,0.10793899,94390.0,94373.0,0.06]
[1734922332218,0.12687171,94387.0,94373.0,0.06]
[1734922332719,0.053029,94384.0,94373.0,0.06]
[1734922333516,0.053029,94384.0,94373.0,0.061]
[1734922334021,0.053029,94384.0,94373.0,0.06]
[1734922335321,0.05303,94382.0,94373.0,0.06]
[1734922335716,0.46873899,94383.0,94373.0,0.061]
[1734922336020,0.053035,94374.0,94373.0,0.001]
[1734922336323,0.05304,94365.0,94364.0,0.25312138]
[1734922336618,0.41384,94365.0,94364.0,0.25312138]
[1734922337306,0.053045,94356.0,94348.0,0.25312138]
[1734922337519,0.053048,94351.0,94348.0,0.25312138]
[1734922337912,0.10793899,94360.0,94349.0,0.06]
[1734922338223,0.053047,94352.0,94349.0,0.06]
[1734922338715,0.12687171,94359.0,94349.0,0.06]
[1734922338716,0.3608,94357.0,94349.0,0.06]
[1734922338919,0.053048,94350.0,94349.0,0.06]
[1734922339118,0.053055,94338.0,94337.0,0.25312138]
[1734922339719,0.053055,94338.0,94328.0,0.25312138]
[1734922340325,0.3608,94345.0,94328.0,0.61392138]
[1734922340518,0.001,94338.0,94337.0,0.004]
[1734922340920,0.001,94338.0,94337.0,0.3648]
[1734922341732,0.001,94338.0,94337.0,0.477856]
[1734922342322,0.12687171,94347.0,94339.0,0.053054]
[1734922342520,0.12687171,94356.0,94346.0,0.3608]
[1734922342717,0.053045,94355.0,94346.0,0.46873899]
[1734922343721,0.001,94347.0,94346.0,0.46873899]
[1734922343926,0.12687171,94363.0,94361.0,0.053042]
[1734922344235,0.12687171,94363.0,94362.0,0.547]
[1734922344419,0.12687171,94363.0,94362.0,0.607]
[1734922344727,0.12687171,94363.0,94362.0,1.1537]
[1734922345127,0.00159023,94365.0,94362.0,1.1537]
[1734922345520,0.00159023,94365.0,94363.0,0.053041]
[1734922345717,0.12687171,94382.0,94363.0,0.053041]
[1734922345718,0.12687171,94382.0,94381.0,0.053031]
[1734922346020,0.1881,94414.0,94393.0,0.053024]
[1734922346220,0.01061565,94413.0,94395.0,0.3608]
[1734922346422,0.01061565,94413.0,94395.0,0.4208]
[1734922346639,0.053019,94403.0,94395.0,0.4208]
[1734922346925,0.053022,94397.0,94395.0,0.3608]
[1734922347321,0.053022,94397.0,94388.0,0.01052987]
[1734922347322,0.00458977,94396.0,94388.0,0.01052987]
[1734922347521,0.00458977,94396.0,94388.0,0.06]
[1734922347922,0.00458977,94396.0,94381.0,0.54566]
[1734922348123,0.00458977,94396.0,94381.0,0.5451]
[1734922348124,0.053026,94389.0,94381.0,0.5451]
[1734922348624,0.00458977,94396.0,94381.0,0.5451]
[1734922348625,0.053029,94385.0,94381.0,0.3608]
[1734922349126,0.053024,94393.0,94381.0,0.3608]
[1734922349633,0.38298001,94395.0,94381.0,0.3628]
[1734922349832,0.1908,94392.0,94381.0,0.3628]
[1734922350224,0.1908,94392.0,94381.0,0.3618]
[1734922350424,0.05303,94384.0,94381.0,0.3618]
[1734922351026,0.05303,94384.0,94381.0,0.001]
[1734922351624,0.06359304,94384.0,94381.0,0.001]
[1734922352532,0.05303,94382.0,94369.0,0.06]
[1734922353135,0.053035,94374.0,94369.0,0.06]
[1734922353332,0.053037,94370.0,94369.0,0.06]
[1734922353533,0.3608,94373.0,94362.0,0.00158929]
[1734922353534,0.5477,94373.0,94362.0,0.00158929]
[1734922353742,0.053041,94363.0,94362.0,0.00158929]
[1734922355935,0.057041,94363.0,94362.0,0.00158929]
[1734922356832,0.004,94363.0,94362.0,0.00158929]
[1734922357426,0.057041,94363.0,94362.0,0.00158929]
[1734922357829,0.057041,94363.0,94362.0,0.06158929]
[1734922358828,0.06779813,94363.0,94362.0,0.06158929]
[1734922359024,0.06379813,94363.0,94362.0,0.06158929]
[1734922359249,0.06579813,94363.0,94362.0,0.06158929]
[1734922359737,0.06779813,94363.0,94362.0,0.06158929]
[1734922360124,0.01475713,94363.0,94342.0,0.3608]
[1734922360330,0.053051,94345.0,94342.0,0.3608]
[1734922360529,0.3608,94353.0,94342.0,0.3608]
[1734922361442,0.3608,94353.0,94351.0,0.053047]
[1734922361639,0.004,94363.0,94352.0,0.7494]
[1734922362035,0.3608,94364.0,94355.0,0.06]
[1734922363243,0.3618,94364.0,94355.0,0.06]